[Event "Chinese League Div-A Rapid 2022"]
[Site "Fuling,Chongqing"]
[Date "2022.09.19"]
[Round "11.28"]
[White "Chen, Yuan"]
[Black "Zhao, Yuanhe"]
[Result "1-0"]
[ECO "A04"]
[WhiteElo "2138"]
[BlackElo "2440"]
[Annotator "TA"]
[PlyCount "123"]
[EventDate "2022.09.07"]
[EventType "team-tourn"]
[EventCountry "CHN"]
[SourceTitle "playchess.com"]
[Source "ChessBase"]
[SourceQuality "1"]
[TimeControl "1500+10"]

{[%evp 16,123,0,14,17,-33,-33,-44,-31,-28,-35,-29,-14,0,37,27,23,39,46,54,54,5,6,7,8,-25,-14,-14,-8,-44,-66,-61,-57,-91,-77,-60,-26,-24,0,0,0,0,0,0,0,0,0,0,0,0,6,-10,-13,-11,-15,-8,-6,-10,0,-27,-19,-19,-17,-16,-18,-23,-29,-27,-33,-37,-37,-31,-35,-27,0,-23,-8,-8,0,0,0,0,0,0,14,8,283,283,283,148,137,82,239,239,29952,29954,5624,11975,4590,29951,12797,1862,4549,3645,29978,78,29979,29979,29983,29973]} 1. e4 {[%emt 0:00:01]} c5 {[%emt 0:00:01]} 2. Nf3 {[%emt 0:00:02]} Nc6 {[%emt 0:00:02]} 3. d3 {[%emt 0:01:59]} g6 {[%emt 0:00:12]} 4. g3 {[%emt 0:00:11]} Bg7 {[%emt 0:00:02]} 5. Bg2 {[%emt 0:00:01]} e6 {[%emt 0:00:05]} 6. O-O {[%emt 0:00:03]} Nge7 {[%emt 0:00:03]} 7. Re1 {[%emt 0:00:42]} d6 {[%emt 0:01:15]} 8. c3 {[%emt 0:00:22]} e5 {[%emt 0:00:01]} 9. Be3 {[%emt 0:00:38]} O-O {[%emt 0:00:04] BESTDEEP. A04: Unusual lines after 1 Nf3 and King's Indian Attack.} 10. d4 {[%emt 0:00:21] CPLX 2.1 50 (Nb1-a3) (=25)} (10. Na3 $11) 10... exd4 $15 {[%emt 0:00:01] DEEPSTRONG} 11. cxd4 {[%emt 0:00:02] RECAPT} Bg4 {[%emt 0:00:02] EASY. Black is slightly better.} 12. dxc5 {[%emt 0:02:47] CPLX 3.1} dxc5 {[%emt 0:00:08] aiming for ...Qxd1. RECAPT} 13. Nc3 {[%emt 0:00:55] CPLX 3.0} Nd4 {[%emt 0:00:09] CPLX 3.1 15 (Qd8-a5) (=3)} 14. h3 {[%emt 0:00:38] [#] EASY} Bc8 $146 {[%emt 0:03:00] CPLX 3.3 37 (Nd4xf3) (=9)} ({Predecessor:} 14... Be6 15. Rc1 Rc8 16. Ne2 Nxf3+ 17. Bxf3 Qxd1 18. Rexd1 b6 19. b3 Nc6 20. Bg2 Rfd8 {0-1 (44) Hernandez Sanchez,J (2051)-Principe,G (2045) Bento Goncalves 2010}) 15. Nd5 {[%emt 0:00:41] CPLX 2.6} Nxd5 {[%emt 0:00:57] EASY} 16. exd5 {[%emt 0:00:03][%cal Rf3d4] RECAPT} Qb6 {[%emt 0:00:19] CPLX 2.6 7 (Rf8-e8) (=7)} 17. Rc1 {[%emt 0:04:37] BESTDEEP} Bf5 {[%emt 0:00:21] CPLX 2.6} 18. Rxc5 {[%emt 0:01:12] CPLX 2.8 49 (g3-g4) (=10)} Qxc5 $11 {[%emt 0:00:12] RECAPT} 19. Nxd4 {[%emt 0:00:02] EASY} Qc8 {[%emt 0:00:08] BESTDEEP} 20. g4 {[%emt 0:01:39] CPLX 3.1 33 (Kg1-h2) (=11)} Bd7 {[%emt 0:00:03] EASY} 21. Qb3 {[%emt 0:00:41] CPLX 2.8 0 (d5-d6) (=10)} Qb8 {[%emt 0:02:43] CPLX 2.9 6 (Qc8-c7) (=5)} 22. Qb4 {[%emt 0:02:46] Inhibits Qd6. CPLX 3.0 36 (Re1-d1) (=12)} Re8 {[%emt 0:00:23] EASY} 23. Nb3 {[%emt 0:00:16] BESTDEEP} Bf8 {[%emt 0:00:47] BESTDEEP} ({But not} 23... Bxb2 24. Nc5 Qd6 25. Qxb2 Rxe3 26. Rxe3 $16) 24. Qd2 {[%emt 0:02:45] CPLX 3.6 34 (Qb4-d4) (=13)} Qd6 {[%emt 0:01:05] CPLX 3.1 14 (Qb8-e5) (=5)} 25. Rd1 {[%emt 0:00:12] BESTDEEP} Rac8 {[%emt 0:00:31] Against Bc5. CPLX 3.1 34 (Bd7-a4) (=7)} 26. Na5 $1 {[%emt 0:01:00] DEEPSTRONG} Qb4 {[%emt 0:03:43] CPLX 3.4 24 (b7-b6) (=8)} 27. Qxb4 {[%emt 0:00:46] CPLX 3.7} Bxb4 {[%emt 0:00:06] RECAPT} 28. Nxb7 {[%emt 0:00:14] EASY} Rc2 {[%emt 0:06:09] CPLX 3.0} 29. a3 {[%emt 0:00:08] CPLX 3.1} Rxe3 $1 {[%emt 0:03:46] DEEPSTRONG} 30. fxe3 {[%emt 0:00:18] RECAPT} Bd2 {[%emt 0:00:01] EASY} 31. b4 {[%emt 0:01:03] BESTDEEP} Bxe3+ {[%emt 0:00:03] EASY} 32. Kh1 {[%emt 0:00:01] CPLX 2.0} Bb6 {[%emt 0:00:31] CPLX 2.1 6 (Kg8-f8) (=6)} 33. Nc5 {[%emt 0:00:20] CPLX 2.1 16 (Nb7-d6) (=9)} Bxc5 {[%emt 0:00:07] EASY} 34. bxc5 {[%emt 0:00:01] RECAPT} Rxc5 {[%emt 0:00:13][%mdl 4096] Endgame KRB-KRB. RECAPT} 35. Rb1 {[%emt 0:00:01] CPLX 2.0} Bb5 {[%emt 0:01:03] BESTDEEP} 36. Kh2 {[%emt 0:01:25] CPLX 2.0 4 (d5-d6) (=8)} a6 {[%emt 0:00:33] CPLX 2.0 10 (Kg8-g7) (=5)} 37. Re1 {[%emt 0:00:13] CPLX 2.0 27 (Kh2-g3) (=9)} Kf8 {[%emt 0:00:16] CPLX 2.0 8 (Rc5-c3) (=6)} 38. Re3 {[%emt 0:00:02] BESTDEEP} Rc2 {[%emt 0:00:28] And now ...Bf1 would win. CPLX 2.0 2 (g6-g5) (=5)} 39. Kg3 {[%emt 0:00:07] EASY} h6 {[%emt 0:00:10] BESTDEEP} 40. Be4 {[%emt 0:00:38] CPLX 2.0 5 (Bg2-f3) (=8)} Rc4 {[%emt 0:00:20] BESTDEEP} 41. Kf4 {[%emt 0:00:49] CPLX 2.0 0 (Kg3-f3) (=8)} Ke7 {[%emt 0:00:06] EASY} 42. g5 {[%emt 0:00:17] CPLX 2.2 4 (Kf4-e5) (=8)} f5 {[%emt 0:00:50] BESTDEEP} 43. gxf6+ $1 {[%emt 0:00:31] DEEPSTRONG} Kxf6 {[%emt 0:00:02] RECAPT} 44. Kg3 {[%emt 0:00:14] CPLX 2.2} Rd4 {[%emt 0:00:14] CPLX 2.0 27 (Bb5-d7) (=5)} 45. Bf3 {[%emt 0:00:08] CPLX 2.0 23 (Re3-f3) (=8)} Rd3 {[%emt 0:00:55] CPLX 2.1 15 (h6-h5) (=6)} 46. Re6+ {[%emt 0:00:40] BESTDEEP} ({Of course not} 46. Rxd3 Bxd3 47. Kf4 g5+ 48. Kg4 (48. Ke3 Bf5 $17) 48... Bg6 $17) 46... Kf7 {[%emt 0:00:23] CPLX 2.2 8 (Kf6-f5) (=6)} 47. Kf4 {[%emt 0:00:15] CPLX 2.4} Rxa3 {[%emt 0:00:13] CPLX 2.4} 48. Rb6 {[%emt 0:00:06] CPLX 2.2} g5+ {[%emt 0:00:10] CPLX 2.2 0 (Bb5-f1) (=5)} 49. Ke4 {[%emt 0:00:01] EASY} Ke7 {[%emt 0:00:12] CPLX 2.3 14 (Bb5-d7) (=6)} 50. Rxh6 {[%emt 0:00:09] CPLX 2.4 6 (Bf3-g4) (=7)} Ra4+ $2 {[%emt 0:00:10][%mdl 8192] RELBLUND 275 (Bb5-d7) (=12)} (50... Bd7 $11 {and Black has nothing to worry.}) 51. Ke5 $18 {[%emt 0:00:02] EASY} Rh4 {[%emt 0:00:08] CPLX 2.0} 52. Rb6 {[%emt 0:00:18] CPLX 2.4 135 (d5-d6) (=10)} ({White should play} 52. d6+ $18 Kd8 53. Rg6) 52... Rxh3 $16 {[%emt 0:00:10] [#] CPLX 2.2=>BLUNDERREACT} 53. Rb7+ {[%emt 0:00:01] MISSDEEP-d5-d6 55 (d5-d6) (=11)} (53. d6+ $142 $1 Kf8 54. Rb8+ Kg7 55. Rb7+ Kf8 56. Bd5) 53... Kd8 $2 {[%emt 0:00:11] CPLX 2.0 157 (Ke7-f8) (=15)} (53... Kf8 $16 {keeps fighting.} 54. Bg4 Rh4) 54. Bg4 $18 {[%emt 0:00:09][%mdl 1024] White has strong compensation. CPLX 2.4=>BLUNDERREACT} Re3+ {[%emt 0:00:11] RELBLUND 400 (Rh3-b3) (=23)} (54... Rb3 $18 55. d6 Ba4) 55. Kd6 {[%emt 0:00:04][%cal Rb7b8] CPLX 2.2=>BLUNDERREACT} Ke8 {[%emt 0:00:06] BEVAL} 56. Be6 {[%emt 0:00:14][%cal Rb7b8] BEVAL} Kf8 {[%emt 0:00:02] [#] BEVAL} 57. Rf7+ $1 {[%emt 0:00:02] DEEPSTRONG} Ke8 {[%emt 0:00:15] BEVAL} 58. Rg7 {[%emt 0:00:01][%cal Rg7g8] BEVAL} Rf3 {[%emt 0:00:15] BEVAL} 59. Rxg5 {[%emt 0:00:05] Rg8+ would kill now. BEVAL} a5 {[%emt 0:00:09] RELBLUND 400 (Bb5-c4) (=29)} 60. Rg8+ {[%emt 0:00:05] CPLX 2.0} Rf8 {[%emt 0:00:02] LEGAL} 61. Rg7 {[%emt 0:00:01] DEEPSTRONG} Rf4 {[%emt 0:00:20] RELBLUND 4 (Rf8-h8) (=28)} 62. Rb7 {[%emt 0:00:07] Weighted Error Value: White=0.10 (very precise) /Black=0.47} 1-0

[Event "Chinese League Div-A Rapid 2022"]
[Site "Fuling,Chongqing"]
[Date "2022.09.19"]
[Round "11.29"]
[White "Ren, Xiaoyi"]
[Black "Qiu, Mengjie"]
[Result "1/2-1/2"]
[ECO "D27"]
[WhiteElo "2250"]
[BlackElo "2149"]
[Annotator "NA RC"]
[PlyCount "83"]
[EventDate "2022.09.07"]
[EventType "team-tourn"]
[EventCountry "CHN"]
[SourceTitle "playchess.com"]
[Source "ChessBase"]
[SourceQuality "1"]
[TimeControl "1500+10"]

1. d4 {[%emt 0:00:04]} d5 {[%emt 0:00:02]} 2. c4 {[%emt 0:00:03]} dxc4 {[%emt 0:00:04]} 3. e3 {[%emt 0:00:02]} Nf6 {[%emt 0:00:06]} 4. Nf3 {[%emt 0:00:04]} e6 {[%emt 0:00:04]} 5. Bxc4 {[%emt 0:00:03]} c5 {[%emt 0:00:06]} 6. O-O {[%emt 0:00:07]} a6 {[%emt 0:00:05]} 7. dxc5 {[%emt 0:02:51]} Qxd1 {[%emt 0:00:30]} 8. Rxd1 {[%emt 0:00:04]} Bxc5 {[%emt 0:00:04]} 9. Nbd2 {[%emt 0:00:21]} Nc6 {[%emt 0:00:48]} 10. Be2 {[%emt 0:00:05]} O-O {[%emt 0:00:48]} 11. b3 {[%emt 0:00:09]} Rd8 {[%emt 0:00:41]} 12. Bb2 {[%emt 0:00:32]} Bd7 {[%emt 0:01:05]} 13. Nc4 {[%emt 0:03:20]} Be8 {[%emt 0:01:06]} 14. Nfe5 {[%emt 0:02:01]} Rxd1+ {[%emt 0:00:42]} 15. Rxd1 {[%emt 0:00:02]} Rd8 {[%emt 0:00:02]} 16. Rxd8 {[%emt 0:00:04]} Nxd8 {[%emt 0:00:02]} 17. Bf3 {[%emt 0:00:01]} Be7 {[%emt 0:02:14]} 18. Nb6 {[%emt 0:02:30]} Bc5 {[%emt 0:00:23]} 19. Bd4 {[%emt 0:01:56]} Bxd4 {[%emt 0:00:35]} 20. exd4 {[%emt 0:00:04]} Kf8 {[%emt 0:00:10]} 21. Kf1 {[%emt 0:00:40]} Ke7 {[%emt 0:00:59]} 22. Nc8+ {[%emt 0:00:07]} Kf8 {[%emt 0:00:04]} 23. Nb6 {[%emt 0:00:13]} Ke7 {[%emt 0:00:03]} 24. Nc8+ {[%emt 0:00:02]} Kf8 {[%emt 0:00:01]} 25. Ke2 {[%emt 0:00:02]} Nd5 {[%emt 0:01:29]} 26. Bxd5 {[%emt 0:00:04]} exd5 {[%emt 0:00:03]} 27. Nb6 {[%emt 0:00:02]} Ne6 {[%emt 0:01:52]} 28. Ke3 {[%emt 0:03:55]} Nc7 {[%emt 0:00:12]} 29. Nd3 {[%emt 0:00:53]} Ke7 {[%emt 0:02:21]} 30. Nc5 {[%emt 0:00:40]} Bc6 {[%emt 0:00:10]} 31. Nc8+ {[%emt 0:00:06]} Kd8 {[%emt 0:02:37]} 32. Nd6 {[%emt 0:02:11]} b6 {[%emt 0:02:28]} 33. Nxf7+ {[%emt 0:01:03]} Ke7 {[%emt 0:00:05]} 34. Ne5 {[%emt 0:00:04]} bxc5 {[%emt 0:00:39]} 35. Nxc6+ {[%emt 0:00:10]} Kd6 {[%emt 0:00:03]} 36. Na5 {[%emt 0:00:21]} cxd4+ {[%emt 0:01:55]} 37. Kxd4 {[%emt 0:00:15]} Ne6+ {[%emt 0:00:20]} 38. Ke3 {[%emt 0:00:37]} Kc5 {[%emt 0:00:25]} 39. a3 {[%emt 0:00:17]} Kb5 {[%emt 0:00:18]} 40. Nb7 {[%emt 0:00:30]} Kc6 {[%emt 0:00:04]} 41. Na5+ {[%emt 0:00:02]} Kb5 {[%emt 0:00:02]} 42. Nb7 {[%emt 0:03:22]} 1/2-1/2

[Event "Chinese League Div-A Rapid 2022"]
[Site "Fuling,Chongqing"]
[Date "2022.09.19"]
[Round "11.30"]
[White "Chu, Ruotong"]
[Black "Bai, Xue"]
[Result "1/2-1/2"]
[ECO "E06"]
[WhiteElo "2185"]
[BlackElo "2123"]
[Annotator "NA RC"]
[PlyCount "46"]
[EventDate "2022.09.07"]
[EventType "team-tourn"]
[EventCountry "CHN"]
[SourceTitle "playchess.com"]
[Source "ChessBase"]
[SourceQuality "1"]
[TimeControl "1500+10"]

1. d4 {[%emt 0:00:27]} d5 {[%emt 0:00:04]} 2. c4 {[%emt 0:00:30]} e6 {[%emt 0:00:04]} 3. Nf3 {[%emt 0:00:38]} Nf6 {[%emt 0:00:05]} 4. g3 {[%emt 0:00:07]} Be7 {[%emt 0:00:48]} 5. Bg2 {[%emt 0:00:14]} O-O {[%emt 0:01:30]} 6. Nc3 {[%emt 0:00:06]} dxc4 {[%emt 0:01:38]} 7. Ne5 {[%emt 0:00:13]} c5 {[%emt 0:00:20]} 8. dxc5 {[%emt 0:03:57]} Qxd1+ {[%emt 0:00:24]} 9. Nxd1 {[%emt 0:00:03]} Bxc5 {[%emt 0:00:06]} 10. Nxc4 {[%emt 0:01:24]} Nc6 {[%emt 0:03:16]} 11. Be3 {[%emt 0:02:31]} Bb4+ {[%emt 0:00:43]} 12. Bd2 {[%emt 0:01:08]} Bxd2+ {[%emt 0:00:16]} 13. Nxd2 {[%emt 0:00:03]} Bd7 {[%emt 0:00:24]} 14. Nc3 {[%emt 0:00:11]} Nd4 {[%emt 0:00:21]} 15. O-O {[%emt 0:00:46]} Bc6 {[%emt 0:00:10]} 16. Bxc6 {[%emt 0:00:39]} Nxc6 {[%emt 0:00:07]} 17. Nde4 {[%emt 0:00:01]} Nxe4 {[%emt 0:00:04]} 18. Nxe4 {[%emt 0:00:02]} Rfd8 {[%emt 0:00:02]} 19. Rfd1 {[%emt 0:00:26]} Rxd1+ {[%emt 0:00:12]} 20. Rxd1 {[%emt 0:00:01]} Rd8 {[%emt 0:00:02]} 21. Rxd8+ {[%emt 0:00:05]} Nxd8 {[%emt 0:00:02]} 22. Kg2 {[%emt 0:00:08]} Kf8 {[%emt 0:00:10]} 23. Kf3 {[%emt 0:00:13]} Ke7 {[%emt 0:00:05]} 1/2-1/2